bitfinex/quotes_ETHUSD_20220212
["timestamp","ask_amount","ask_price","bid_price","bid_amount"]
[1644679111996,0.58222165,2867.1,2867.0,0.368]
[1644679112198,0.58222165,2867.1,2867.0,0.418]
[1644679112597,0.03832991,2867.6,2867.1,0.58221608]
[1644679112802,0.03832991,2867.6,2867.3,5.22]
[1644679113096,0.03832991,2867.6,2867.4,0.418]
[1644679113498,0.68499045,2868.8,2867.4,0.418]
[1644679113499,0.1743,2868.7,2867.4,0.418]
[1644679113743,0.69723441,2868.8,2867.4,0.418]
[1644679113744,0.64463238,2868.4,2867.4,0.418]
[1644679114043,0.29446643,2867.3,2867.2,0.418]
[1644679114443,0.43286643,2867.3,2867.2,0.418]
[1644679114641,0.29446643,2867.3,2867.2,0.418]
[1644679116347,0.29446643,2867.3,2866.5,3.7161]
[1644679116550,0.29446643,2867.3,2866.2,0.00169992]
[1644679116551,1.6597762,2867.2,2866.2,0.00169992]
[1644679116848,2.5058662,2867.1,2866.2,0.00169992]
[1644679117050,2.5058662,2867.1,2865.5,3.9859]
[1644679117051,1.6597762,2867.0,2865.5,4.4039]
[1644679117247,1.4853762,2866.9,2865.8,0.57294708]
[1644679117508,0.1744,2866.8,2866.2,0.0056664]
[1644679118102,1.74503,2867.0,2866.2,0.0056664]
[1644679118395,1.74503,2867.0,2866.3,0.418]
[1644679118595,1.74503,2867.0,2866.3,0.9661797]
[1644679118596,0.1744,2867.0,2866.3,0.9661797]
[1644679118795,0.00945609,2867.2,2866.3,0.9661797]
[1644679118995,1.48541874,2867.1,2866.3,0.9661797]
[1644679119602,1.48541874,2867.2,2866.3,0.9661797]
[1644679119797,1.49487536,2867.2,2866.3,0.9661797]
[1644679119996,0.00945662,2867.2,2866.3,0.9661797]
[1644679120400,1.48533616,2867.1,2866.3,0.9661797]
[1644679120799,0.29446643,2867.3,2866.3,0.9661797]
[1644679121000,1.66926083,2867.2,2866.3,0.9661797]
[1644679121244,1.48540408,2867.1,2866.3,0.9661797]
[1644679122044,0.0624287,2866.9,2866.3,0.9661797]
[1644679122447,1.48545948,2866.8,2866.3,0.9661797]
[1644679122646,0.0624287,2866.9,2866.3,0.9661797]
[1644679123251,0.0624287,2866.9,2866.4,0.1744]
[1644679123446,0.0624287,2866.9,2866.5,0.418]
[1644679124149,0.0624287,2866.9,2866.8,0.60314251]
[1644679124350,0.0624287,2866.9,2866.8,1.02114251]
[1644679124546,0.0307287,2866.9,2866.8,1.02114251]
[1644679125998,1.51595656,2866.9,2866.8,1.02114251]
[1644679126602,1.51595656,2866.9,2866.6,0.1744]
[1644679126802,1.51595656,2866.9,2865.9,0.418]
[1644679126803,0.17612199,2866.1,2865.9,0.418]
[1644679126999,0.17612199,2866.1,2865.7,0.418]
[1644679127598,0.17612199,2866.1,2865.8,0.69400544]
[1644679127800,0.12612199,2866.1,2865.8,0.69400544]
[1644679128200,0.12612199,2866.1,2865.8,0.69983573]
[1644679128744,1.48553626,2866.0,2865.8,0.69983573]
[1644679129144,1.48553626,2866.0,2865.8,0.69400544]
[1644679129345,1.48553626,2866.0,2865.8,0.00581625]
[1644679130349,1.48553626,2866.0,2865.4,0.58951878]
[1644679130550,1.48553626,2866.0,2865.8,0.00581625]
[1644679131154,3.82701272,2865.9,2865.8,0.00581625]
[1644679131352,2.51594668,2865.9,2865.8,0.00581625]
[1644679131551,2.51594668,2865.9,2864.5,0.418]
[1644679131749,0.64859934,2865.6,2865.0,0.6532661]
[1644679131951,1.48553626,2865.5,2865.0,0.6532661]
[1644679132152,0.64859934,2865.7,2865.0,0.6532661]
[1644679132153,1.48553626,2865.4,2865.0,0.6532661]
[1644679132350,1.48553626,2865.3,2865.0,0.6532661]
[1644679132593,1.48553626,2865.2,2864.5,0.418]
[1644679132793,1.48553626,2865.1,2864.5,0.418]
[1644679132994,0.64859934,2865.7,2865.0,0.00580536]
[1644679133191,2.13447293,2865.7,2865.0,0.00580536]
[1644679133992,2.13447293,2865.7,2864.5,0.418]
[1644679133993,4.61016365,2865.6,2864.5,0.418]
[1644679134192,1.48587359,2865.5,2864.5,0.418]
[1644679134394,1.48587359,2865.5,2865.2,0.00580496]
[1644679134597,1.48587359,2865.4,2865.2,0.42380496]
[1644679134794,1.48587359,2865.3,2865.2,0.42380496]
[1644679134994,1.48569719,2865.3,2865.2,0.42380496]
[1644679135196,1.48569719,2865.8,2865.2,0.418]
[1644679135398,1.48569719,2865.7,2865.2,1.06800773]
[1644679135598,1.39845857,2865.6,2865.2,0.418]
[1644679135796,0.1744,2865.9,2865.2,0.418]
[1644679135997,0.69941437,2866.0,2865.2,0.418]
[1644679136258,0.64859934,2865.9,2865.2,0.418]
[1644679136656,0.64859934,2865.9,2865.5,0.00580633]
[1644679136855,0.69941437,2866.0,2865.5,0.00580633]
[1644679137256,0.05060783,2865.6,2865.5,0.00580633]
[1644679137757,0.05060783,2865.6,2865.4,0.00580643]
[1644679138860,0.82455733,2865.5,2865.2,0.01219277]
[1644679139165,0.85601042,2865.4,2864.1,0.139662]
[1644679139363,0.65004282,2865.0,2864.1,0.139662]
[1644679139661,0.82444282,2864.9,2864.1,0.139662]
[1644679139860,0.65004282,2864.9,2864.1,0.139662]
[1644679140105,0.1744,2864.8,2864.1,0.139662]
[1644679140309,0.1744,2864.8,2864.4,0.00580829]
[1644679140505,1.52328282,2865.1,2864.4,0.00580829]
[1644679140506,0.1744,2864.9,2864.4,0.00580829]
[1644679140705,0.1744,2865.0,2864.4,0.00580829]
[1644679140906,0.1744,2865.1,2864.4,0.00580829]
[1644679141303,4.09340461,2865.1,2863.8,1.02794962]
[1644679141504,4.74344743,2865.1,2864.6,0.00580778]
[1644679141708,0.82444282,2865.1,2864.6,0.00580778]
[1644679142311,0.1744,2865.1,2864.6,0.00580778]
[1644679142506,0.65004282,2865.4,2864.5,0.71069844]
[1644679142705,0.68795983,2865.5,2864.7,0.00580758]
[1644679142905,0.82444282,2865.3,2864.7,0.00580758]
[1644679143107,0.65004282,2865.0,2864.7,0.00580758]
[1644679143510,0.1744,2864.9,2864.7,0.00580758]
[1644679143749,0.1744,2864.9,2863.5,3.9371]
[1644679143750,7.17172652,2864.8,2863.3,0.418]
[1644679143953,0.87331,2864.5,2863.3,0.418]
[1644679144147,1.69775282,2864.5,2863.3,0.418]
[1644679144453,1.04771,2864.5,2863.3,0.418]
[1644679144953,0.87336,2864.4,2863.3,0.98194901]
[1644679145148,0.87331,2864.5,2863.8,0.00580961]
[1644679145349,3.26992282,2864.9,2863.8,0.00580961]
[1644679145550,0.1744,2864.6,2863.8,0.00580961]
[1644679145751,0.1744,2864.8,2863.8,0.00580961]
[1644679145951,0.1744,2864.9,2863.3,0.98194901]
[1644679146150,0.1744,2864.9,2863.8,0.6901495]
[1644679146353,0.1744,2864.9,2864.1,0.005809]
[1644679146550,4.77735609,2865.1,2864.1,0.005809]
[1644679146751,0.82444282,2865.1,2864.1,0.005809]
[1644679146958,0.82444282,2865.3,2864.1,0.423809]
[1644679147152,0.0290823,2864.9,2864.8,0.1226611]
[1644679147621,0.0290823,2864.9,2864.8,0.18422309]
[1644679148423,0.0290823,2864.9,2864.1,0.418]
[1644679148625,0.1744,2864.8,2864.1,0.418]
[1644679148824,0.1744,2864.8,2864.7,0.00177613]
[1644679149624,0.1744,2864.8,2863.9,0.418]
[1644679149824,0.1744,2864.8,2863.9,0.718]
[1644679150021,0.1744,2864.8,2864.6,0.0017762]
[1644679150524,0.9022923,2864.9,2864.6,0.0017762]
[1644679150525,0.0290823,2864.9,2864.7,0.418]
[1644679150725,0.0290823,2864.9,2864.7,0.718]
[1644679151121,0.0290823,2864.9,2864.7,1.018]
[1644679151353,0.0290823,2864.9,2864.8,0.7093273]
[1644679151562,0.0290823,2864.9,2864.8,1.1273273]
[1644679152162,0.03674861,2864.9,2864.8,1.24297944]
[1644679152359,0.03674861,2864.9,2864.8,0.53365214]
[1644679152665,0.03674861,2864.9,2864.8,0.11565214]
[1644679152862,0.21114861,2864.9,2864.8,0.11565214]
[1644679153462,0.65004282,2865.2,2864.8,0.11565214]
[1644679153762,0.1745,2865.6,2864.8,0.11565214]
[1644679153959,0.65004282,2865.7,2864.9,0.418]
[1644679154162,0.65004282,2865.3,2864.8,0.11565214]
[1644679154993,0.82444282,2865.5,2864.9,0.00708615]
[1644679155197,0.65004282,2865.4,2864.9,0.00708615]
[1644679155598,0.65004282,2865.3,2863.6,0.96633829]
[1644679155895,0.65004282,2865.3,2864.1,0.418]
[1644679156096,0.1744,2865.2,2864.1,0.418]
[1644679156397,1.48621387,2865.1,2864.1,0.418]
[1644679156597,1.48621387,2865.1,2864.1,0.98915819]
[1644679157400,1.48621387,2865.1,2864.8,0.11568118]
[1644679157401,0.07851847,2864.9,2864.8,0.11568118]
[1644679157798,1.56473234,2864.9,2864.8,0.11568118]
[1644679158399,1.56473234,2864.9,2864.8,0.53368118]
[1644679158400,0.07851847,2864.9,2864.8,0.53368118]
[1644679158601,0.65004282,2865.8,2864.9,3.3]
[1644679158851,0.0389842,2866.0,2865.0,0.418]
[1644679159047,0.68902702,2866.0,2865.0,0.418]
[1644679159251,0.86342702,2866.0,2865.0,0.418]
[1644679159448,0.65004282,2865.8,2865.0,0.418]
[1644679159652,2.13591149,2865.8,2865.0,0.418]
[1644679159854,0.65004282,2865.6,2864.8,0.12274998]
[1644679160061,0.65004282,2865.3,2864.8,0.12274998]
[1644679160355,4.17232428,2865.5,2864.8,0.12274998]
[1644679160356,1.48586867,2865.2,2864.8,0.12274998]
[1644679160559,4.34672428,2865.5,2864.8,0.12274998]
[1644679160560,1.48586867,2865.1,2864.8,0.12274998]
[1644679160758,1.48586867,2865.0,2864.8,0.11568118]
[1644679160954,1.48586867,2864.9,2864.8,0.12274998]
[1644679161655,1.48586867,2865.2,2864.8,0.12274998]
[1644679161854,1.48586867,2865.2,2864.8,0.11568118]
[1644679162254,1.48586867,2865.2,2864.5,0.418]
[1644679162255,0.08627143,2864.9,2864.7,0.11042427]
[1644679162496,0.08627143,2864.9,2864.8,0.418]
[1644679163797,1.57224948,2864.9,2864.8,0.5924]
[1644679165103,0.08627143,2864.9,2864.8,0.5924]
[1644679165307,0.04163119,2865.0,2864.9,3.3]
[1644679165308,2.62e-06,2865.0,2864.9,3.3]
[1644679165504,2.62e-06,2865.0,2864.9,3.8924]
[1644679165710,2.62e-06,2865.0,2864.9,0.5924]
[1644679166261,0.66079236,2866.2,2865.3,3.3]
[1644679166455,2.99266342,2866.7,2865.2,3.3]
[1644679166456,0.65119244,2866.5,2865.6,5.0]
[1644679166648,0.65119244,2866.6,2865.7,0.418]
[1644679166847,2.35984023,2866.7,2865.9,5.0]
[1644679167048,2.35984023,2866.7,2866.0,0.418]
[1644679167049,1.70864779,2866.7,2866.0,0.418]
[1644679167348,1.70864779,2866.7,2866.1,0.7027986]
[1644679167552,1.70864779,2866.7,2866.2,0.418]
[1644679167752,0.94763779,2865.9,2865.8,5.22]
[1644679167955,0.94763779,2865.9,2865.2,1.49738]
[1644679167956,0.94763779,2865.9,2865.6,0.17209129]
[1644679168153,1.70864779,2866.7,2865.9,3.3]
[1644679168355,0.1744,2867.2,2866.2,5.0]
[1644679168551,0.1744,2867.2,2866.3,0.5924]
[1644679168752,0.1744,2867.2,2866.3,1.76449129]
[1644679168953,0.1744,2867.2,2866.4,0.61197683]
[1644679169252,0.1744,2867.2,2866.5,0.5924]
[1644679169553,0.1744,2867.2,2866.5,0.76449129]
[1644679170001,0.1744,2867.2,2866.6,0.17209129]
[1644679170204,0.29446643,2867.3,2866.7,0.5924]
[1644679170608,0.03737087,2867.5,2866.8,3.3]
[1644679170804,0.03737087,2867.5,2866.9,2.28975]
[1644679171004,0.03737087,2867.5,2866.9,4.20525129]
[1644679171202,0.03737087,2867.5,2867.0,0.17209129]
[1644679171402,0.03737087,2867.5,2867.1,0.418]
[1644679171608,0.65119244,2868.3,2867.2,0.65607445]
[1644679171804,0.65119244,2868.1,2867.3,0.418]
[1644679172003,0.65119244,2868.0,2867.3,0.418]
[1644679172404,0.65119244,2868.1,2867.3,0.418]
[1644679172805,0.65119244,2868.0,2867.7,0.50555933]
[1644679173004,1.8588517,2868.8,2867.7,0.50555933]
[1644679173005,0.65119244,2868.1,2867.7,0.50555933]
[1644679173605,0.39565887,2867.6,2867.3,0.418]
[1644679174047,0.39565887,2867.6,2867.4,0.65300842]
[1644679174347,0.39565887,2867.6,2867.4,1.07100842]
[1644679175551,0.40543175,2867.6,2867.4,1.07100842]
[1644679175757,0.40543175,2867.6,2867.4,0.418]
[1644679176154,0.40543175,2867.6,2866.8,0.1743]
[1644679176651,0.39565887,2867.6,2866.8,0.1743]
[1644679176853,0.40498939,2867.6,2866.6,0.25]
[1644679177053,0.40498939,2867.6,2866.4,0.42381984]
[1644679177253,0.40498939,2867.6,2866.5,0.1743]
[1644679177696,0.39565887,2867.6,2866.5,0.1743]
[1644679177898,0.0093308,2867.2,2866.5,0.1743]
[1644679178097,0.0093308,2867.2,2866.9,0.68770193]
[1644679178900,0.39565887,2867.6,2866.9,0.68770193]
[1644679179100,0.0093308,2867.2,2866.9,0.68770193]
[1644679180103,0.39565887,2867.6,2866.9,0.68770193]
[1644679180303,0.0093308,2867.2,2866.9,0.68770193]
[1644679181342,0.1743,2867.5,2866.9,0.68770193]
[1644679181543,0.39565887,2867.6,2866.9,0.68770193]
[1644679181544,0.00939551,2867.2,2866.9,0.68770193]
[1644679181942,0.00939551,2867.2,2867.1,0.01670297]
[1644679182343,0.39565887,2867.6,2867.1,0.01670297]
[1644679182746,0.00939544,2867.3,2867.1,0.01670297]
[1644679183546,0.39565887,2867.6,2867.1,0.01670297]
[1644679183948,0.00939541,2867.3,2867.1,0.01670297]
[1644679184994,0.39565887,2867.6,2867.1,0.01670297]
[1644679185198,0.00938595,2867.3,2867.1,0.01670297]
[1644679185997,0.35504482,2867.6,2867.1,0.01670297]
[1644679186201,1.48514382,2867.5,2867.1,0.01670297]
[1644679186398,0.00938595,2867.3,2867.1,0.01670297]
[1644679186599,1.48514382,2867.2,2867.1,0.01670297]
[1644679187199,1.52689175,2867.2,2866.9,0.01975647]
[1644679187398,5.0,2867.0,2866.9,0.01975647]
[1644679187598,1.65954382,2867.0,2866.9,0.01975647]
[1644679187801,1.65954382,2867.0,2865.8,0.58884434]
[1644679188000,1.65954382,2866.9,2865.8,0.58884434]
[1644679188200,1.48514382,2866.8,2865.8,0.58884434]
[1644679188400,5.0,2867.0,2865.5,0.14365724]
[1644679188401,1.48514382,2866.7,2865.5,0.14365724]
[1644679188602,1.48514382,2866.7,2865.1,6.9141]
[1644679188603,6.48514382,2866.6,2865.1,0.1744]
[1644679188851,1.65954382,2866.5,2866.2,0.00603276]
[1644679189050,0.00465858,2866.0,2865.2,0.25]
[1644679189247,0.00465858,2866.0,2865.1,0.1744]
[1644679189447,0.00465858,2866.0,2865.5,0.66038806]
[1644679189853,0.00465858,2866.0,2864.9,0.418]
[1644679190051,1.48578803,2865.9,2865.1,0.1744]
[1644679190251,1.48578803,2865.9,2865.0,0.1744]
[1644679190453,1.48578803,2865.9,2864.8,0.1744]
[1644679190753,1.48578803,2865.9,2864.7,0.1744]
[1644679190954,1.48578803,2865.9,2865.1,0.54614295]
[1644679192162,1.48578803,2865.9,2864.7,0.1744]
[1644679192360,1.48578803,2865.9,2865.4,0.00730611]
[1644679192361,5.0,2865.7,2865.4,0.00730611]
[1644679192598,1.66018803,2865.6,2865.4,0.00730611]
[1644679192797,1.48578803,2865.5,2865.4,0.00730611]
[1644679192997,1.66018803,2865.5,2865.4,0.00730611]
[1644679193198,2.27260907,2865.5,2864.3,0.50930041]
[1644679193397,0.1744,2865.4,2864.3,0.50930041]
[1644679193597,0.1744,2865.4,2865.3,0.00730624]
[1644679194003,1.48607103,2865.4,2865.3,0.00730624]
[1644679194197,1.48607103,2865.5,2865.3,0.00730624]
[1644679194403,1.48607103,2865.4,2864.4,3.75]
[1644679194600,0.38819997,2865.8,2864.4,3.75]
[1644679194601,0.1744,2865.8,2864.4,3.9244]
[1644679194803,0.00465858,2866.0,2865.3,0.69571433]
[1644679195000,0.00465858,2866.0,2865.4,0.5924]
[1644679195001,1.48579552,2865.9,2865.4,0.5924]
[1644679195203,1.48579552,2865.9,2865.5,0.418]
[1644679196004,1.48579552,2865.9,2865.6,0.0073056]
[1644679196945,1.48579552,2865.9,2865.4,0.1744]
[1644679196946,1.48579552,2865.9,2865.4,0.28937685]
[1644679197145,1.48579552,2865.9,2865.6,0.00730547]
[1644679198149,1.48579552,2865.9,2865.4,0.28937685]
[1644679198448,1.48579552,2865.9,2865.6,0.00730547]
[1644679199252,1.66019552,2865.9,2865.4,0.11497685]
[1644679199449,1.48579552,2865.8,2865.6,0.00730547]
[1644679199852,1.48579552,2865.7,2865.6,0.00730547]
[1644679200101,1.48579552,2865.8,2865.6,0.00730547]
[1644679200301,1.48579552,2865.7,2865.6,0.00730547]
[1644679200502,1.48579552,2865.8,2865.4,0.11497685]
[1644679200702,1.48579552,2865.7,2865.6,0.0073056]
[1644679201102,1.48579552,2865.8,2865.6,0.0073056]
[1644679201303,1.48579552,2865.7,2865.6,0.0073056]
[1644679201701,0.4244,2865.9,2865.4,0.11497685]
[1644679201702,2.10658385,2865.8,2865.4,0.11497685]
[1644679201905,1.48579552,2865.7,2865.5,0.00730573]
[1644679202607,1.48579552,2865.7,2864.5,0.1744]
[1644679202608,8.3,2865.6,2864.5,0.1744]
[1644679202807,5.0,2865.4,2864.2,0.1744]
[1644679203005,5.0,2865.4,2863.9,0.1744]
[1644679203006,1.66019552,2865.3,2863.9,0.1744]
[1644679203204,0.51863169,2865.1,2863.9,0.80809394]
[1644679203503,1.48579552,2865.0,2863.9,0.80809394]
[1644679203755,1.48579552,2865.0,2863.9,0.63369394]
[1644679203948,1.48579552,2865.0,2863.8,0.1744]
[1644679204147,1.66019552,2865.0,2863.6,3.6744]
[1644679204348,1.66019552,2865.0,2864.3,0.00220104]
[1644679204349,1.48579552,2864.9,2864.3,0.00220104]
[1644679204747,0.1744,2865.0,2864.3,0.00220104]
[1644679204948,1.4862505,2864.9,2864.3,0.00220104]
[1644679205151,0.25,2865.3,2864.3,0.00220104]
[1644679205152,0.1744,2865.2,2864.3,0.00220104]
[1644679205352,0.1744,2865.2,2863.9,0.418]
[1644679205353,1.48627411,2865.1,2863.9,0.418]
[1644679205551,1.48627411,2865.1,2864.5,0.00220093]
[1644679205552,2.11432134,2865.1,2864.5,0.00220093]
[1644679205753,1.48627411,2865.0,2864.5,0.00220093]
[1644679206154,0.1744,2864.9,2864.5,0.00220093]
[1644679206353,1.48627411,2864.8,2864.5,0.00220093]
[1644679206554,1.48627411,2864.8,2863.6,0.1744]
[1644679206756,1.48627411,2864.7,2864.6,0.00728988]
[1644679207357,0.50200637,2864.4,2863.7,0.02916784]
[1644679207608,1.66103983,2864.3,2863.7,0.02916784]
[1644679207806,0.36227275,2863.0,2862.8,0.00202113]
[1644679208005,0.36227275,2863.0,2862.3,0.418]
[1644679208006,0.36227275,2863.0,2862.4,0.00202113]
[1644679208405,0.36227275,2863.0,2862.6,0.70397557]
[1644679208805,0.36227275,2863.0,2862.7,0.5926]
[1644679209005,0.36227275,2863.0,2862.7,0.76469129]
[1644679209210,0.36227275,2863.0,2862.8,0.17209129]
[1644679209408,0.36227275,2863.0,2862.9,0.5926]
[1644679209815,0.36227275,2863.0,2862.9,0.76469129]
[1644679211552,0.25,2864.4,2863.0,3.3]
[1644679211756,0.00591275,2864.5,2863.1,4.38946118]
[1644679211954,0.00591275,2864.5,2863.1,4.5635736]
[1644679212151,0.00591275,2864.5,2863.2,0.17209129]
[1644679212356,0.00591275,2864.5,2863.3,0.418]
[1644679212554,0.00591275,2864.5,2863.9,0.68332265]
[1644679213155,0.00591275,2864.5,2864.0,0.59009129]
[1644679213553,0.00591275,2864.5,2864.1,0.17209129]
[1644679213753,0.00591275,2864.5,2864.1,1.13099129]
[1644679213953,0.00591275,2864.5,2864.2,0.418]
[1644679214152,0.00591275,2864.5,2864.2,0.59009129]
[1644679214755,0.00591275,2864.5,2864.4,0.57258792]
[1644679215007,0.00591275,2864.5,2864.4,0.99058792]
[1644679215207,0.00591275,2864.5,2864.4,1.16498792]
[1644679215810,0.00591275,2864.5,2864.4,1.33707921]
[1644679216807,0.00591275,2864.5,2864.4,1.16498792]
[1644679217018,2.2,2864.4,2864.3,0.0059254]
[1644679217209,2.25050081,2864.4,2864.3,0.0059254]
[1644679217408,2.25050081,2864.4,2864.1,0.07769948]
[1644679217611,0.22490081,2864.4,2864.1,0.07769948]
[1644679217808,0.22490081,2864.4,2864.2,0.00592561]
[1644679218610,0.22490081,2864.4,2864.1,0.07769948]
[1644679218853,0.22490081,2864.4,2864.2,0.42392571]
[1644679219856,0.22490081,2864.4,2864.1,0.07769948]
[1644679219857,0.05050081,2864.4,2864.1,0.07769948]
[1644679220055,0.05050081,2864.4,2864.2,0.00598228]
[1644679220257,0.22490081,2864.4,2864.2,0.00598228]
[1644679221054,0.22490081,2864.4,2864.1,0.07769948]
[1644679221254,0.22490081,2864.4,2864.2,0.00598228]
[1644679221954,0.22490081,2864.4,2864.3,0.07750634]
[1644679223800,0.05050081,2864.4,2864.3,1.32740634]
[1644679223999,0.00010081,2864.4,2864.3,1.78470634]
[1644679224598,0.00010081,2864.4,2864.3,2.20270634]
[1644679225002,1.48649453,2864.4,2864.2,0.00597388]
[1644679225206,3.3,2864.3,2863.8,0.02389909]
[1644679225413,1.48639372,2864.2,2863.8,0.02389909]
[1644679225605,0.1744,2864.1,2863.8,0.02389909]
[1644679225805,1.48657771,2864.0,2863.3,0.75538895]
[1644679226005,0.1744,2864.3,2863.4,3.3]
[1644679226263,0.00010081,2864.4,2863.9,5.0]
[1644679226451,0.00010081,2864.4,2864.0,0.5924]
[1644679226651,0.00010081,2864.4,2864.1,0.418]
[1644679227051,0.04991075,2864.4,2864.3,0.0775596]
[1644679227257,0.82559244,2865.9,2864.4,3.3]
[1644679227557,0.00465858,2866.0,2864.5,0.7353]
[1644679227752,0.00465858,2866.0,2864.5,1.7353]
[1644679227955,0.00465858,2866.0,2864.5,1.90739129]
[1644679228154,0.00465858,2866.0,2865.4,0.50884875]
[1644679228454,0.00465858,2866.0,2865.3,0.52791237]
[1644679229557,0.65119244,2865.8,2865.3,0.52791237]
[1644679229757,0.00939985,2865.8,2865.3,0.94591237]
[1644679230011,0.00939985,2865.8,2865.4,5.34649129]
[1644679230012,9.985e-05,2865.8,2865.4,5.34649129]
[1644679230205,9.985e-05,2865.8,2865.6,5.0]
[1644679230404,9.985e-05,2865.8,2865.7,0.5924]
[1644679230609,9.985e-05,2865.8,2865.7,0.418]
[1644679230811,0.00465858,2866.0,2865.8,0.59398393]
[1644679231005,0.00465858,2866.0,2865.9,0.418]
[1644679231405,0.00465858,2866.0,2865.9,1.2125]
[1644679231805,5.858e-05,2866.0,2865.9,1.2125]
[1644679232006,5.858e-05,2866.0,2865.9,1.38459129]
[1644679232408,5.858e-05,2866.0,2865.9,1.2125]
[1644679233010,7.48051256,2868.1,2865.9,1.2125]
[1644679233011,0.7382343,2867.7,2866.2,24.15958041]
[1644679233220,0.1744,2868.9,2867.8,0.2846]
[1644679233221,0.65152107,2868.4,2867.8,0.2846]
[1644679233413,0.65152107,2868.5,2867.8,0.418]
[1644679233858,0.65152107,2868.4,2867.8,0.418]
[1644679234056,0.65549256,2868.5,2867.8,0.418]
[1644679234260,0.53702883,2867.9,2867.8,0.418]
[1644679234456,0.53702883,2867.9,2867.1,0.418]
[1644679234656,0.54100032,2867.9,2867.1,0.418]
[1644679234860,0.00397149,2867.9,2867.1,0.418]
[1644679235061,0.00397149,2868.3,2867.1,0.418]
[1644679235664,0.65549256,2868.3,2867.1,0.418]
[1644679235865,0.70544132,2868.1,2867.2,1.91796]
[1644679236063,0.00397149,2868.0,2867.3,0.418]
[1644679236262,0.65152107,2868.6,2867.4,0.1743]
[1644679236263,0.65549256,2868.6,2867.4,0.1743]
[1644679236462,0.00397149,2868.6,2867.5,0.418]
[1644679236663,0.1743,2868.5,2867.5,0.418]
[1644679236864,0.65152107,2868.7,2867.5,0.418]
[1644679236865,0.65152107,2868.6,2867.5,0.418]
[1644679237062,0.05162319,2868.3,2868.1,0.07417998]
[1644679237263,0.02852233,2867.9,2866.8,9.30501428]
[1644679237498,0.02852233,2867.9,2866.9,0.418]
[1644679237897,0.02852233,2867.9,2867.0,3.76006681]
[1644679237898,0.72526694,2867.9,2867.0,3.76006681]
[1644679238098,0.72526694,2867.9,2866.8,5.3943]
[1644679238099,0.02852233,2867.9,2867.1,0.418]
[1644679238300,0.02852233,2867.9,2867.2,0.418]
[1644679238301,0.00977028,2867.5,2867.2,0.418]
[1644679238501,0.00977028,2867.5,2867.3,0.418]
[1644679238698,0.00977028,2867.5,2866.9,0.17209129]
[1644679238699,0.00977028,2867.5,2867.4,0.418]
[1644679239101,0.02852233,2867.9,2867.4,0.5923]
[1644679239299,0.02852233,2867.9,2867.5,0.1743]
[1644679239500,0.02852233,2867.9,2867.6,0.418]
[1644679240806,0.03829235,2867.9,2867.6,0.418]
[1644679241549,0.02852233,2867.9,2867.6,0.418]
[1644679241750,0.03829235,2867.9,2867.6,0.418]
[1644679242753,0.02852233,2867.9,2867.6,0.418]
[1644679242954,0.03829235,2867.9,2867.6,0.418]
[1644679243954,0.02852233,2867.9,2867.6,0.418]
[1644679244153,0.03829235,2867.9,2867.6,0.418]
[1644679245304,0.02852233,2867.9,2867.6,0.418]
[1644679245509,0.03829235,2867.9,2867.6,0.418]
[1644679246304,0.02852233,2867.9,2867.6,0.418]
[1644679246706,0.03805287,2867.9,2867.6,0.418]
[1644679246906,0.04835739,2867.8,2867.7,0.0853171]
[1644679247106,0.04835739,2867.8,2867.7,0.5033171]
[1644679248309,0.04835739,2867.8,2867.3,4.13971445]
[1644679248509,0.04835739,2867.8,2867.4,0.418]
[1644679248950,0.00953067,2867.7,2867.4,0.418]
[1644679249952,0.04835739,2867.8,2867.4,0.418]
[1644679250160,0.00936427,2867.7,2867.4,0.418]
[1644679250958,0.00936427,2867.7,2867.1,3.9227]
[1644679251158,0.04835739,2867.8,2867.0,0.418]
[1644679251556,0.00936427,2867.7,2867.0,0.418]
[1644679251961,0.01333576,2867.7,2867.0,0.418]
[1644679252357,0.00397149,2867.7,2867.0,0.418]
[1644679252600,0.22265739,2867.8,2867.0,0.418]
[1644679252601,0.00936439,2867.5,2867.0,0.418]
[1644679253701,0.00938879,2867.4,2867.0,0.418]
[1644679254701,0.05232888,2867.8,2867.0,0.418]
[1644679255110,0.00938883,2867.3,2867.0,0.418]
[1644679255709,0.08987855,2867.8,2867.1,1.85]
[1644679255907,0.05232888,2867.8,2867.2,0.418]
[1644679256106,0.05232888,2867.8,2867.3,0.418]
[1644679256355,0.04835739,2867.8,2867.4,0.418]
[1644679257158,0.02852233,2867.9,2867.4,0.418]
[1644679257357,0.00938502,2867.7,2867.4,0.418]
[1644679258456,0.02852233,2867.9,2867.4,0.418]
[1644679258656,0.00938505,2867.7,2867.4,0.418]
[1644679259658,0.02852233,2867.9,2867.4,0.418]
[1644679259857,0.00938505,2867.7,2867.4,0.418]
[1644679260707,0.02852233,2867.9,2867.4,0.418]
[1644679261109,0.00938453,2867.7,2867.4,0.418]
[1644679261817,0.00938453,2867.7,2867.5,0.09008562]
[1644679261818,0.05306265,2867.6,2867.5,0.09008562]
[1644679262010,0.05306265,2867.6,2867.5,0.50808562]
[1644679263410,0.05306265,2867.6,2867.5,0.68238562]
[1644679264652,0.05306265,2867.6,2867.5,0.50808562]
[1644679267064,0.05306265,2867.6,2867.5,0.418]
[1644679268908,0.05306265,2867.6,2866.8,0.418]
[1644679268909,0.22736265,2867.6,2866.8,0.418]
[1644679269510,0.53729103,2867.4,2866.8,0.418]
[1644679270520,0.99720655,2867.3,2866.8,0.418]
[1644679271561,2.71178575,2867.2,2866.8,0.418]
[1644679271864,2.71178575,2867.2,2866.0,0.418]
[1644679271865,9.29720655,2867.1,2866.0,0.418]
[1644679272067,5.0,2866.2,2865.1,0.03011503]
[1644679272266,6.17160655,2866.1,2865.1,0.03011503]
[1644679272460,0.25,2866.0,2865.1,0.03011503]
[1644679272663,0.1744,2865.9,2865.1,0.03011503]
[1644679272864,0.99720655,2866.0,2865.1,0.03011503]
[1644679273064,1.06646387,2865.9,2865.1,0.03011503]
[1644679273266,0.67292822,2866.1,2865.1,0.03011503]
[1644679273267,1.06646387,2865.8,2865.2,0.502]
[1644679273465,0.67292822,2866.1,2865.2,0.502]
[1644679273665,1.07725399,2866.0,2865.2,0.502]
[1644679273868,1.07725399,2866.0,2865.3,0.37962342]
[1644679274068,0.1744,2866.8,2865.4,0.1744]
[1644679274267,1.78192107,2866.9,2865.5,0.37962342]
[1644679274268,1.09828622,2866.7,2865.5,0.37962342]
[1644679274466,1.09828622,2866.6,2865.6,1.03488288]